[Event "Late-Titled-Tuesday-Blitz-March-05-2024"]
[Site "Chess.com"]
[Date "2024.03.05"]
[Round "5"]
[White "PawnEatingZombie"]
[Black "Jahonas"]
[Result "1/2-1/2"]
[WhiteElo "2176"]
[BlackElo "2386"]
[TimeControl "180+1"]
[EndTime "14:55:53 PST"]
[Termination "Game drawn by repetition"]

1. e4 {[%clk 0:03:00.9]} 1... c6 {[%clk 0:02:59.8]} 2. Nf3 {[%clk 0:02:59.6]}
2... d5 {[%clk 0:03:00]} 3. d3 {[%clk 0:03:00.1]} 3... dxe4 {[%clk 0:02:59.7]}
4. dxe4 {[%clk 0:03:01]} 4... Qxd1+ {[%clk 0:02:59.9]} 5. Kxd1 {[%clk
0:03:01.8]} 5... Bg4 {[%clk 0:03:00.1]} 6. Be2 {[%clk 0:03:01.5]} 6... Nd7
{[%clk 0:02:59.7]} 7. Ne1 {[%clk 0:03:01.6]} 7... Bxe2+ {[%clk 0:02:56.2]} 8.
Kxe2 {[%clk 0:03:02.5]} 8... e5 {[%clk 0:02:56.4]} 9. Nd3 {[%clk 0:03:02.5]}
9... f6 {[%clk 0:02:51.3]} 10. a4 {[%clk 0:03:01.4]} 10... Nc5 {[%clk
0:02:50.7]} 11. f3 {[%clk 0:02:59.5]} 11... Nxd3 {[%clk 0:02:50.8]} 12. cxd3
{[%clk 0:02:48.7]} 12... Bc5 {[%clk 0:02:50]} 13. Be3 {[%clk 0:02:48.2]} 13...
Bxe3 {[%clk 0:02:48.8]} 14. Kxe3 {[%clk 0:02:49.1]} 14... O-O-O {[%clk
0:02:48.5]} 15. Nc3 {[%clk 0:02:42.2]} 15... Ne7 {[%clk 0:02:47.6]} 16. Rhd1
{[%clk 0:02:41.7]} 16... Rd7 {[%clk 0:02:42.5]} 17. d4 {[%clk 0:02:35.9]} 17...
exd4+ {[%clk 0:02:37.9]} 18. Rxd4 {[%clk 0:02:34.9]} 18... Rxd4 {[%clk
0:02:37.6]} 19. Kxd4 {[%clk 0:02:35.8]} 19... Rd8+ {[%clk 0:02:37.1]} 20. Ke3
{[%clk 0:02:36.2]} 20... Kc7 {[%clk 0:02:33.2]} 21. a5 {[%clk 0:02:27.6]} 21...
a6 {[%clk 0:02:25.4]} 22. Na4 {[%clk 0:02:25.6]} 22... Ng6 {[%clk 0:02:18.6]}
23. Nc5 {[%clk 0:02:22.2]} 23... Rd6 {[%clk 0:01:53.1]} 24. f4 {[%clk
0:02:01.5]} 24... Nf8 {[%clk 0:01:49.6]} 25. h4 {[%clk 0:01:41.9]} 25... Nd7
{[%clk 0:01:46.4]} 26. Nd3 {[%clk 0:01:41]} 26... c5 {[%clk 0:01:41.1]} 27. Rc1
{[%clk 0:01:40]} 27... Rc6 {[%clk 0:01:34.1]} 28. b3 {[%clk 0:01:30.7]} 28...
Kd6 {[%clk 0:01:31.6]} 29. g4 {[%clk 0:01:26.1]} 29... h6 {[%clk 0:01:30.8]} 30.
h5 {[%clk 0:01:25.3]} 30... b5 {[%clk 0:01:30.6]} 31. axb6 {[%clk 0:01:21.8]}
31... Rxb6 {[%clk 0:01:29.9]} 32. Rc3 {[%clk 0:01:16.7]} 32... Rb5 {[%clk
0:01:29.1]} 33. Nc1 {[%clk 0:01:08.4]} 33... Ra5 {[%clk 0:01:27.9]} 34. Ne2
{[%clk 0:01:04.7]} 34... Ra2 {[%clk 0:01:25.9]} 35. Ng3 {[%clk 0:01:04.5]} 35...
Rg2 {[%clk 0:01:15.3]} 36. Kf3 {[%clk 0:01:01.8]} 36... Rh2 {[%clk 0:01:15.5]}
37. Nf5+ {[%clk 0:01:01.7]} 37... Kc6 {[%clk 0:01:06.3]} 38. Rd3 {[%clk
0:00:57.7]} 38... c4 {[%clk 0:00:50]} 39. bxc4 {[%clk 0:00:53.3]} 39... Nc5
{[%clk 0:00:49.9]} 40. Rd6+ {[%clk 0:00:43.1]} 40... Kc7 {[%clk 0:00:49.6]} 41.
Rd4 {[%clk 0:00:38.4]} 41... a5 {[%clk 0:00:49.2]} 42. Nxg7 {[%clk 0:00:32.6]}
42... a4 {[%clk 0:00:48.4]} 43. Rd5 {[%clk 0:00:28.6]} 43... Kc6 {[%clk
0:00:46.7]} 44. Rd8 {[%clk 0:00:16.2]} 44... Na6 {[%clk 0:00:41.9]} 45. Rd1
{[%clk 0:00:14.4]} 45... a3 {[%clk 0:00:41.4]} 46. Ra1 {[%clk 0:00:14.2]} 46...
a2 {[%clk 0:00:41.8]} 47. Nf5 {[%clk 0:00:14]} 47... Nb4 {[%clk 0:00:41.1]} 48.
Nd4+ {[%clk 0:00:13.6]} 48... Kc5 {[%clk 0:00:40.7]} 49. Nb3+ {[%clk 0:00:12]}
49... Kxc4 {[%clk 0:00:40.2]} 50. Nc1 {[%clk 0:00:12.4]} 50... Kc3 {[%clk
0:00:33.1]} 51. Nxa2+ {[%clk 0:00:10.5]} 51... Nxa2 {[%clk 0:00:33.2]} 52. e5
{[%clk 0:00:09.2]} 52... fxe5 {[%clk 0:00:33.3]} 53. fxe5 {[%clk 0:00:09.5]}
53... Kd4 {[%clk 0:00:32.6]} 54. e6 {[%clk 0:00:09.6]} 54... Nc3 {[%clk
0:00:32.1]} 55. e7 {[%clk 0:00:08.7]} 55... Re2 {[%clk 0:00:30.4]} 56. Ra7
{[%clk 0:00:05.1]} 56... Re6 {[%clk 0:00:28.6]} 57. Kf4 {[%clk 0:00:05.2]} 57...
Nd5+ {[%clk 0:00:28.8]} 58. Kf5 {[%clk 0:00:05.5]} 58... Re4 {[%clk 0:00:24.4]}
59. Kg6 {[%clk 0:00:05.2]} 59... Rxg4+ {[%clk 0:00:20.5]} 60. Kxh6 {[%clk
0:00:05.6]} 60... Re4 {[%clk 0:00:20.6]} 61. Kh7 {[%clk 0:00:05.5]} 61... Nxe7
{[%clk 0:00:20.7]} 62. h6 {[%clk 0:00:04.8]} 62... Nf5 {[%clk 0:00:20.7]} 63.
Kg6 {[%clk 0:00:04.6]} 63... Nd6 {[%clk 0:00:19.5]} 64. h7 {[%clk 0:00:04.5]}
64... Rh4 {[%clk 0:00:19.6]} 65. Kg5 {[%clk 0:00:04.3]} 65... Rh1 {[%clk
0:00:19]} 66. Kg6 {[%clk 0:00:04.9]} 66... Ke5 {[%clk 0:00:19.2]} 67. Kg7 {[%clk
0:00:05.4]} 67... Rg1+ {[%clk 0:00:18]} 68. Kf8 {[%clk 0:00:05.6]} 68... Rh1
{[%clk 0:00:18.1]} 69. Kg7 {[%clk 0:00:05.9]} 69... Rg1+ {[%clk 0:00:18.3]} 70.
Kf8 {[%clk 0:00:06.3]} 70... Rh1 {[%clk 0:00:18.7]} 71. Kg7 {[%clk 0:00:06.8]}
1/2-1/2

[Event "Late-Titled-Tuesday-Blitz-March-05-2024"]
[Site "Chess.com"]
[Date "2024.03.05"]
[Round "5"]
[White "GilbertoHernandezAmura"]
[Black "mac0504"]
[Result "0-1"]
[WhiteElo "2478"]
[BlackElo "2721"]
[TimeControl "180+1"]
[EndTime "14:55:54 PST"]
[Termination "mac0504 won by resignation"]

1. c4 {[%clk 0:02:55.6]} 1... Nf6 {[%clk 0:02:18.3]} 2. g3 {[%clk 0:02:54.8]}
2... g6 {[%clk 0:02:18.6]} 3. Bg2 {[%clk 0:02:54.9]} 3... Bg7 {[%clk 0:02:19.3]}
4. Nc3 {[%clk 0:02:54.9]} 4... O-O {[%clk 0:02:20]} 5. d3 {[%clk 0:02:55.3]}
5... Nc6 {[%clk 0:02:20.1]} 6. e4 {[%clk 0:02:53.6]} 6... d6 {[%clk 0:02:20.7]}
7. Nge2 {[%clk 0:02:53.1]} 7... Nd7 {[%clk 0:02:21.4]} 8. O-O {[%clk 0:02:52.7]}
8... e5 {[%clk 0:02:22.2]} 9. Nd5 {[%clk 0:02:45.2]} 9... Nd4 {[%clk 0:02:21.2]}
10. Nxd4 {[%clk 0:02:44.6]} 10... exd4 {[%clk 0:02:22.1]} 11. f4 {[%clk
0:02:40.9]} 11... c6 {[%clk 0:02:22.3]} 12. Nb4 {[%clk 0:02:39.5]} 12... Nc5
{[%clk 0:02:17.6]} 13. Nc2 {[%clk 0:02:34.4]} 13... a5 {[%clk 0:02:18]} 14. b3
{[%clk 0:02:31.5]} 14... f5 {[%clk 0:02:15]} 15. Rb1 {[%clk 0:02:14.4]} 15...
Re8 {[%clk 0:02:01.4]} 16. Re1 {[%clk 0:02:12.5]} 16... fxe4 {[%clk 0:01:56.2]}
17. dxe4 {[%clk 0:02:11.8]} 17... d3 {[%clk 0:01:56.8]} 18. Ne3 {[%clk
0:02:01.3]} 18... Nxe4 {[%clk 0:01:44.8]} 19. Qxd3 {[%clk 0:01:53.2]} 19... Nc3
{[%clk 0:01:35.6]} 20. Rb2 {[%clk 0:01:51]} 20... Bf5 {[%clk 0:01:35.2]} 21. Qf1
{[%clk 0:01:34.6]} 21... Qb6 {[%clk 0:01:18.8]} 22. Kh1 {[%clk 0:01:23.2]} 22...
Be4 {[%clk 0:01:18.3]} 23. Bxe4 {[%clk 0:01:15.6]} 23... Rxe4 {[%clk 0:01:16.4]}
24. Rc2 {[%clk 0:01:00.9]} 24... Rae8 {[%clk 0:01:15.3]} 25. Ng2 {[%clk
0:01:01.2]} 25... Rxe1 {[%clk 0:01:00.6]} 26. Nxe1 {[%clk 0:01:02.1]} 26... Qd4
{[%clk 0:01:01.1]} 27. Ng2 {[%clk 0:00:47.3]} 27... Qe4 {[%clk 0:01:00.9]} 28.
Rd2 {[%clk 0:00:39.8]} 28... d5 {[%clk 0:00:48.9]} 29. cxd5 {[%clk 0:00:34.3]}
29... Nxd5 {[%clk 0:00:46]} 30. Bb2 {[%clk 0:00:31]} 30... Ne3 {[%clk
0:00:28.4]} 31. Qa1 {[%clk 0:00:21.6]} 31... Nxg2 {[%clk 0:00:16.5]} 32. Rxg2
{[%clk 0:00:22.5]} 32... Qe1+ {[%clk 0:00:12.1]} 33. Rg1 {[%clk 0:00:23]} 33...
Qe4+ {[%clk 0:00:05.2]} 34. Rg2 {[%clk 0:00:22.7]} 34... Bxb2 {[%clk 0:00:03.5]}
35. Qxb2 {[%clk 0:00:20.6]} 35... Qf3 {[%clk 0:00:03.1]} 36. h3 {[%clk
0:00:17.5]} 36... Re1+ {[%clk 0:00:03]} 37. Kh2 {[%clk 0:00:17]} 37... Qf1
{[%clk 0:00:03.8]} 38. g4 {[%clk 0:00:13.4]} 38... Qxf4+ {[%clk 0:00:03.6]} 39.
Rg3 {[%clk 0:00:13.7]} 39... Qf1 {[%clk 0:00:02.2]} 40. Rg2 {[%clk 0:00:13.6]}
40... Qf4+ {[%clk 0:00:02]} 41. Rg3 {[%clk 0:00:14]} 41... Rf1 {[%clk
0:00:02.7]} 42. Kg2 {[%clk 0:00:13.5]} 42... Re1 {[%clk 0:00:02.3]} 43. Qf2
{[%clk 0:00:13]} 43... Qxf2+ {[%clk 0:00:02.1]} 44. Kxf2 {[%clk 0:00:13.9]}
44... Ra1 {[%clk 0:00:02.8]} 45. Rd3 {[%clk 0:00:14]} 45... Rxa2+ {[%clk
0:00:03.5]} 46. Ke3 {[%clk 0:00:14.6]} 46... Kf7 {[%clk 0:00:04]} 47. Rd7+
{[%clk 0:00:14.7]} 47... Ke6 {[%clk 0:00:04.2]} 48. Rxh7 {[%clk 0:00:14.7]}
48... b5 {[%clk 0:00:04.1]} 49. Rc7 {[%clk 0:00:14.9]} 49... Kd5 {[%clk
0:00:04.1]} 50. Rg7 {[%clk 0:00:15.5]} 50... Ra3 {[%clk 0:00:04.5]} 51. Kf4
{[%clk 0:00:14.3]} 51... Rxb3 {[%clk 0:00:04.8]} 52. h4 {[%clk 0:00:15]} 52...
a4 {[%clk 0:00:05.7]} 53. Ra7 {[%clk 0:00:14.3]} 53... a3 {[%clk 0:00:05.6]} 54.
Kg5 {[%clk 0:00:14.9]} 54... b4 {[%clk 0:00:05.9]} 55. Kxg6 {[%clk 0:00:15.1]}
55... Rb2 {[%clk 0:00:04.7]} 56. h5 {[%clk 0:00:15.4]} 56... a2 {[%clk
0:00:05.3]} 57. h6 {[%clk 0:00:16]} 57... b3 {[%clk 0:00:05.8]} 58. h7 {[%clk
0:00:16.5]} 58... Rh2 {[%clk 0:00:06.3]} 59. Ra5+ {[%clk 0:00:15.9]} 59... c5
{[%clk 0:00:06.2]} 60. Kg7 {[%clk 0:00:14]} 60... Rxh7+ {[%clk 0:00:05.1]} 61.
Kxh7 {[%clk 0:00:14.1]} 61... b2 {[%clk 0:00:06]} 62. Rxa2 {[%clk 0:00:14.5]}
62... b1=Q+ {[%clk 0:00:06.5]} 63. Kh6 {[%clk 0:00:14.2]} 63... Qxa2 {[%clk
0:00:06.4]} 64. g5 {[%clk 0:00:15.1]} 64... Qh2+ {[%clk 0:00:05.9]} 65. Kg7
{[%clk 0:00:15.5]} 65... Ke6 {[%clk 0:00:06.3]} 0-1

[Event "Late-Titled-Tuesday-Blitz-March-05-2024"]
[Site "Chess.com"]
[Date "2024.03.05"]
[Round "5"]
[White "s-dshubin"]
[Black "PepeCuenca"]
[Result "0-1"]
[WhiteElo "2321"]
[BlackElo "2689"]
[TimeControl "180+1"]
[EndTime "14:55:58 PST"]
[Termination "PepeCuenca won by checkmate"]

1. e4 {[%clk 0:03:00.1]} 1... c5 {[%clk 0:02:59.9]} 2. Nf3 {[%clk 0:03:00.2]}
2... Nc6 {[%clk 0:03:00.1]} 3. d4 {[%clk 0:03:00.6]} 3... cxd4 {[%clk
0:03:00.6]} 4. Nxd4 {[%clk 0:03:01.5]} 4... e5 {[%clk 0:03:01.2]} 5. Nb5 {[%clk
0:03:00.8]} 5... d6 {[%clk 0:03:01.8]} 6. N1c3 {[%clk 0:03:00.3]} 6... a6 {[%clk
0:03:02.3]} 7. Na3 {[%clk 0:03:00.9]} 7... Be7 {[%clk 0:03:03]} 8. Nd5 {[%clk
0:02:59.5]} 8... Nf6 {[%clk 0:03:03.3]} 9. Nxf6+ {[%clk 0:02:53.3]} 9... Bxf6
{[%clk 0:03:03.5]} 10. Nc4 {[%clk 0:02:51.2]} 10... O-O {[%clk 0:03:03.2]} 11.
Qxd6 {[%clk 0:02:35.5]} 11... Qxd6 {[%clk 0:02:52.4]} 12. Nxd6 {[%clk
0:02:36.4]} 12... Nb4 {[%clk 0:02:42.1]} 13. Bd3 {[%clk 0:02:35.8]} 13... Rd8
{[%clk 0:02:40.8]} 14. Nxc8 {[%clk 0:02:34.1]} 14... Raxc8 {[%clk 0:02:39.1]}
15. O-O {[%clk 0:02:13.7]} 15... Nxc2 {[%clk 0:02:39.2]} 16. Bxc2 {[%clk
0:02:00.3]} 16... Rxc2 {[%clk 0:02:40.1]} 17. b3 {[%clk 0:02:00.5]} 17... h6
{[%clk 0:02:31.9]} 18. Be3 {[%clk 0:02:00.2]} 18... Bg5 {[%clk 0:02:27.9]} 19.
Rfc1 {[%clk 0:00:25.3]} 19... Rdc8 {[%clk 0:02:06.2]} 20. Rxc2 {[%clk
0:00:14.7]} 20... Rxc2 {[%clk 0:02:07.1]} 21. Bxg5 {[%clk 0:00:15.3]} 21... hxg5
{[%clk 0:02:06.8]} 22. Kf1 {[%clk 0:00:15.7]} 22... Kf8 {[%clk 0:02:03]} 23. g3
{[%clk 0:00:14]} 23... g4 {[%clk 0:02:01]} 24. Rd1 {[%clk 0:00:09.3]} 24... Ke7
{[%clk 0:01:53.7]} 25. a4 {[%clk 0:00:08.6]} 25... Rc3 {[%clk 0:01:40.6]} 26.
Rd5 {[%clk 0:00:08.2]} 26... f6 {[%clk 0:01:37]} 27. b4 {[%clk 0:00:08.6]} 27...
Rc1+ {[%clk 0:01:20.8]} 28. Kg2 {[%clk 0:00:08.8]} 28... Rc4 {[%clk 0:01:17.5]}
29. b5 {[%clk 0:00:08.8]} 29... Rxa4 {[%clk 0:01:13.2]} 30. bxa6 {[%clk
0:00:08.8]} 30... bxa6 {[%clk 0:01:12.7]} 31. h3 {[%clk 0:00:09.4]} 31... gxh3+
{[%clk 0:01:06.5]} 32. Kxh3 {[%clk 0:00:10.3]} 32... Ra2 {[%clk 0:00:56]} 33. f3
{[%clk 0:00:09.8]} 33... a5 {[%clk 0:00:50.4]} 34. Kg4 {[%clk 0:00:09.5]} 34...
Ke6 {[%clk 0:00:44]} 35. f4 {[%clk 0:00:07.7]} 35... exf4 {[%clk 0:00:41.4]} 36.
gxf4 {[%clk 0:00:07.1]} 36... Ra4 {[%clk 0:00:33]} 37. f5+ {[%clk 0:00:03.3]}
37... Ke7 {[%clk 0:00:31.9]} 38. Kf4 {[%clk 0:00:04.2]} 38... Ra1 {[%clk
0:00:30]} 39. Rb5 {[%clk 0:00:04.6]} 39... Kd6 {[%clk 0:00:28.2]} 40. Rb6+
{[%clk 0:00:04.3]} 40... Kc5 {[%clk 0:00:28.1]} 41. Rb7 {[%clk 0:00:04.9]} 41...
Rg1 {[%clk 0:00:27.2]} 42. e5 {[%clk 0:00:03.5]} 42... Rf1+ {[%clk 0:00:22.1]}
43. Ke4 {[%clk 0:00:03.7]} 43... Re1+ {[%clk 0:00:22.3]} 44. Kf4 {[%clk
0:00:03.9]} 44... fxe5+ {[%clk 0:00:21.8]} 45. Kg5 {[%clk 0:00:03.9]} 45... Rg1+
{[%clk 0:00:21.5]} 46. Kh5 {[%clk 0:00:03.7]} 46... e4 {[%clk 0:00:20.7]} 47.
Ra7 {[%clk 0:00:03.5]} 47... Kd4 {[%clk 0:00:11.6]} 48. Rxa5 {[%clk 0:00:03]}
48... Ke3 {[%clk 0:00:12.2]} 49. Rb5 {[%clk 0:00:01.9]} 49... Kf4 {[%clk
0:00:12.1]} 50. Rb3 {[%clk 0:00:02.8]} 50... Rh1+ {[%clk 0:00:10.2]} 51. Kg6
{[%clk 0:00:02.8]} 51... Rg1+ {[%clk 0:00:10]} 52. Kf7 {[%clk 0:00:03.7]} 52...
Kxf5 {[%clk 0:00:10.1]} 53. Rb5+ {[%clk 0:00:04.2]} 53... Kf4 {[%clk 0:00:10.3]}
54. Rb2 {[%clk 0:00:03.7]} 54... e3 {[%clk 0:00:10.4]} 55. Rb4+ {[%clk 0:00:04]}
55... Kf3 {[%clk 0:00:10.9]} 56. Rb6 {[%clk 0:00:03.8]} 56... e2 {[%clk
0:00:10.3]} 57. Kg8 {[%clk 0:00:03.3]} 57... e1=Q {[%clk 0:00:09.6]} 58. Kh7
{[%clk 0:00:04.2]} 58... Qh4+ {[%clk 0:00:08.6]} 59. Kg8 {[%clk 0:00:05.1]}
59... Qd8+ {[%clk 0:00:08.6]} 60. Kf7 {[%clk 0:00:05.1]} 60... Qxb6 {[%clk
0:00:08.6]} 61. Kg8 {[%clk 0:00:04.9]} 61... g5 {[%clk 0:00:08.4]} 62. Kh7
{[%clk 0:00:05.8]} 62... g4 {[%clk 0:00:08.3]} 63. Kg7 {[%clk 0:00:05.5]} 63...
Ra1 {[%clk 0:00:07.5]} 64. Kf7 {[%clk 0:00:06.4]} 64... Ra7+ {[%clk 0:00:07.7]}
65. Ke8 {[%clk 0:00:06.5]} 65... Qb8# {[%clk 0:00:08.6]} 0-1

[Event "Late-Titled-Tuesday-Blitz-March-05-2024"]
[Site "Chess.com"]
[Date "2024.03.05"]
[Round "5"]
[White "ukchessbomber"]
[Black "ckgchess"]
[Result "0-1"]
[WhiteElo "2658"]
[BlackElo "2916"]
[TimeControl "180+1"]
[EndTime "14:56:04 PST"]
[Termination "ckgchess won on time"]

1. c4 {[%clk 0:02:55.7]} 1... g6 {[%clk 0:02:56.7]} 2. b3 {[%clk 0:02:56]} 2...
Bg7 {[%clk 0:02:56.9]} 3. Nc3 {[%clk 0:02:56.9]} 3... Nf6 {[%clk 0:02:54.5]} 4.
Bb2 {[%clk 0:02:56.8]} 4... O-O {[%clk 0:02:55.2]} 5. e3 {[%clk 0:02:57.5]} 5...
c5 {[%clk 0:02:55.2]} 6. Nf3 {[%clk 0:02:58]} 6... Nc6 {[%clk 0:02:55.3]} 7. g3
{[%clk 0:02:56.8]} 7... d5 {[%clk 0:02:53.1]} 8. cxd5 {[%clk 0:02:57.7]} 8...
Nxd5 {[%clk 0:02:53.3]} 9. Bg2 {[%clk 0:02:58.6]} 9... Ndb4 {[%clk 0:02:51.8]}
10. O-O {[%clk 0:02:56.2]} 10... Bf5 {[%clk 0:02:50.7]} 11. Ne1 {[%clk
0:02:50.4]} 11... Rc8 {[%clk 0:02:45.9]} 12. a3 {[%clk 0:02:48.4]} 12... Nd3
{[%clk 0:02:45.1]} 13. Nxd3 {[%clk 0:02:48.6]} 13... Bxd3 {[%clk 0:02:46]} 14.
Re1 {[%clk 0:02:49.5]} 14... Qd7 {[%clk 0:02:33.4]} 15. Ra2 {[%clk 0:02:45.4]}
15... Rfd8 {[%clk 0:02:30.1]} 16. Nd5 {[%clk 0:02:39.7]} 16... e5 {[%clk
0:02:14.9]} 17. Qa1 {[%clk 0:02:19.7]} 17... Qe6 {[%clk 0:02:07.4]} 18. Nf4
{[%clk 0:02:04.4]} 18... Qxb3 {[%clk 0:01:59.3]} 19. Nxd3 {[%clk 0:02:03.8]}
19... Rxd3 {[%clk 0:01:51.5]} 20. Bc3 {[%clk 0:02:03.3]} 20... b6 {[%clk
0:01:37.7]} 21. Rb1 {[%clk 0:01:54.7]} 21... Qe6 {[%clk 0:01:36.9]} 22. a4
{[%clk 0:01:55.3]} 22... Nb4 {[%clk 0:01:24.7]} 23. Bxb4 {[%clk 0:01:19.5]}
23... cxb4 {[%clk 0:01:25.6]} 24. Rxb4 {[%clk 0:01:20]} 24... Rcd8 {[%clk
0:01:01.1]} 25. Be4 {[%clk 0:00:54.6]} 25... Rxd2 {[%clk 0:00:59]} 26. Rxd2
{[%clk 0:00:55.5]} 26... Rxd2 {[%clk 0:00:59.5]} 27. Qc3 {[%clk 0:00:42.2]}
27... Rd8 {[%clk 0:00:48.5]} 28. Kg2 {[%clk 0:00:35.6]} 28... Bf8 {[%clk
0:00:42.1]} 29. Rb5 {[%clk 0:00:34.7]} 29... Bc5 {[%clk 0:00:38]} 30. a5 {[%clk
0:00:35.2]} 30... Kg7 {[%clk 0:00:36.8]} 31. a6 {[%clk 0:00:28.5]} 31... Rd1
{[%clk 0:00:27.3]} 32. Bb7 {[%clk 0:00:21]} 32... h5 {[%clk 0:00:22.1]} 33. h4
{[%clk 0:00:18]} 33... Kh7 {[%clk 0:00:19.8]} 34. Rxc5 {[%clk 0:00:11.7]} 34...
bxc5 {[%clk 0:00:20.7]} 35. Qxc5 {[%clk 0:00:12.2]} 35... e4 {[%clk 0:00:11.2]}
36. Qc7 {[%clk 0:00:12.2]} 36... Qf5 {[%clk 0:00:10.9]} 37. Qf4 {[%clk
0:00:09.7]} 37... Qxf4 {[%clk 0:00:11.1]} 38. gxf4 {[%clk 0:00:10]} 38... f5
{[%clk 0:00:11.2]} 39. f3 {[%clk 0:00:07.5]} 39... Rd2+ {[%clk 0:00:09.4]} 40.
Kg3 {[%clk 0:00:07.5]} 40... exf3 {[%clk 0:00:10.3]} 41. Kxf3 {[%clk 0:00:08.4]}
41... Kg7 {[%clk 0:00:09.5]} 42. e4 {[%clk 0:00:08]} 42... Rd3+ {[%clk
0:00:09.3]} 43. Ke2 {[%clk 0:00:07.4]} 43... fxe4 {[%clk 0:00:10]} 44. Bxe4
{[%clk 0:00:05.4]} 44... Ra3 {[%clk 0:00:10.9]} 45. Bd3 {[%clk 0:00:04.2]} 45...
Kf6 {[%clk 0:00:11.1]} 46. Kd2 {[%clk 0:00:04.8]} 46... Kg7 {[%clk 0:00:07.5]}
47. Ke3 {[%clk 0:00:02.3]} 47... Ra4 {[%clk 0:00:07]} 48. Kf3 {[%clk 0:00:02.2]}
48... Kf6 {[%clk 0:00:07.5]} 49. Ke3 {[%clk 0:00:02.9]} 49... Rb4 {[%clk
0:00:07.7]} 50. Kf3 {[%clk 0:00:02.8]} 50... Rb3 {[%clk 0:00:07.2]} 51. Ke3
{[%clk 0:00:03.4]} 51... Ra3 {[%clk 0:00:07.6]} 52. Ke4 {[%clk 0:00:02.8]} 52...
Ra1 {[%clk 0:00:06.8]} 53. Kd4 {[%clk 0:00:02.4]} 53... Rh1 {[%clk 0:00:06.3]}
54. Kc5 {[%clk 0:00:02.7]} 54... Rxh4 {[%clk 0:00:06.7]} 55. Kc6 {[%clk
0:00:02.2]} 55... Rxf4 {[%clk 0:00:06.6]} 56. Kb7 {[%clk 0:00:03.1]} 56... Rd4
{[%clk 0:00:06.8]} 57. Bf1 {[%clk 0:00:02.9]} 57... Rd7+ {[%clk 0:00:07]} 58.
Kb8 {[%clk 0:00:02.5]} 58... h4 {[%clk 0:00:06.6]} 59. Bh3 {[%clk 0:00:02.7]}
59... Re7 {[%clk 0:00:06.3]} 60. Bg2 {[%clk 0:00:02.6]} 60... g5 {[%clk
0:00:06.5]} 61. Bb7 {[%clk 0:00:02.9]} 61... h3 {[%clk 0:00:06.4]} 62. Kxa7
{[%clk 0:00:02.5]} 62... h2 {[%clk 0:00:06.8]} 63. Kb8 {[%clk 0:00:03.2]} 63...
Rxb7+ {[%clk 0:00:04.7]} 64. axb7 {[%clk 0:00:02.3]} 64... h1=Q {[%clk
0:00:05.6]} 65. Ka7 {[%clk 0:00:01.2]} 65... Qxb7+ {[%clk 0:00:06.5]} 0-1